bitfinex/quotes_ETHUSD_20220212
["timestamp","ask_amount","ask_price","bid_price","bid_amount"]
[1644632350358,0.47965433,2956.0,2955.8,0.00827039]
[1644632350554,0.47965433,2956.0,2955.8,0.00213255]
[1644632351355,0.47965433,2956.0,2955.6,0.84604]
[1644632351812,0.47965433,2956.0,2955.7,0.89065777]
[1644632354007,0.47965433,2956.0,2955.6,1.75207647]
[1644632355207,0.47965433,2956.0,2955.7,0.00827049]
[1644632356051,0.47965433,2956.0,2955.6,1.75207647]
[1644632356452,0.47965433,2956.0,2955.7,0.00827058]
[1644632357259,0.47965433,2956.0,2955.6,1.75207647]
[1644632357559,0.47965433,2956.0,2955.7,0.00827058]
[1644632358461,0.47965433,2956.0,2955.6,1.75207647]
[1644632358860,0.47965433,2956.0,2955.7,0.00827058]
[1644632359706,0.47965433,2956.0,2955.6,1.75207647]
[1644632359905,0.47965433,2956.0,2955.7,0.00827058]
[1644632360507,0.84792573,2956.1,2955.7,0.00827058]
[1644632360909,0.84792573,2956.1,2955.7,0.00386473]
[1644632361111,0.84792573,2956.1,2955.7,0.0121354]
[1644632362112,0.84792573,2956.1,2955.7,0.00386473]
[1644632362312,0.84792573,2956.1,2955.7,0.0121354]
[1644632363458,0.84792573,2956.1,2955.7,0.00386473]
[1644632363655,0.84792573,2956.1,2955.7,0.0121354]
[1644632364457,0.84792573,2956.1,2955.7,0.00386473]
[1644632364862,0.84792573,2956.1,2955.7,0.0121354]
[1644632365764,0.84792573,2956.1,2955.7,0.00386473]
[1644632365971,0.84792573,2956.1,2955.7,0.0121354]
[1644632367005,0.84792573,2956.1,2955.7,0.00386473]
[1644632367205,0.84792573,2956.1,2955.7,0.0121354]
[1644632368205,0.84792573,2956.1,2955.7,0.00386473]
[1644632368406,0.84792573,2956.1,2955.7,0.0121354]
[1644632369407,0.84792573,2956.1,2955.7,0.00386473]
[1644632369606,0.84792573,2956.1,2955.7,0.0121354]
[1644632370652,0.84792573,2956.1,2955.7,0.00386473]
[1644632370854,0.84792573,2956.1,2955.7,0.0121354]
[1644632371656,0.84792573,2956.1,2955.7,0.00386473]
[1644632372055,0.84792573,2956.1,2955.7,0.0121354]
[1644632372956,0.1691,2956.4,2955.7,0.0121354]
[1644632372957,1.195,2956.5,2955.7,0.00386473]
[1644632373157,1.195,2956.5,2955.7,0.0121354]
[1644632374158,1.1872494,2955.9,2955.5,0.00386473]
[1644632374406,1.1872494,2955.9,2955.7,0.00827103]
[1644632375409,1.1872494,2955.9,2955.5,0.00386473]
[1644632375607,1.1872494,2955.9,2955.7,0.00827049]
[1644632376610,1.1872494,2955.9,2955.5,0.00386473]
[1644632376810,1.1872494,2955.9,2955.7,0.00827049]
[1644632377714,1.1872494,2955.9,2955.5,0.00386473]
[1644632378052,1.1872494,2955.9,2955.7,0.00827049]
[1644632378958,1.1872494,2955.9,2955.3,0.00386473]
[1644632379157,1.1872494,2955.9,2955.7,0.00827049]
[1644632380162,1.1872494,2955.9,2955.3,0.84999473]
[1644632380358,1.1872494,2955.9,2955.7,0.00827049]
[1644632380558,0.55249455,2955.8,2955.7,0.00827049]
[1644632380758,0.55249455,2955.8,2955.7,0.87984354]
[1644632380960,0.55097604,2955.8,2955.7,0.87984354]
[1644632381359,0.55097604,2955.8,2955.7,0.87157305]
[1644632390103,0.55097604,2955.8,2955.6,1.10866439]
[1644632390304,0.55097604,2955.8,2955.6,1.10479966]
[1644632390903,0.55097604,2955.8,2955.6,1.09652912]
[1644632391105,0.55097604,2955.8,2955.6,1.10479971]
[1644632392112,0.55097604,2955.8,2955.6,1.09652912]
[1644632392508,0.55097604,2955.8,2955.6,1.10479971]
[1644632392908,0.64472664,2955.7,2955.6,0.25260317]
[1644632393153,2.04764379,2955.9,2955.6,0.25260317]
[1644632393353,2.04764379,2955.9,2955.6,0.24819731]
[1644632393554,0.64727808,2955.7,2955.6,0.24819731]
[1644632393753,0.64727808,2955.7,2955.6,0.24433258]
[1644632393954,0.64727808,2955.8,2955.6,0.24433258]
[1644632394153,0.64727808,2955.8,2955.6,0.24819731]
[1644632394355,0.64727808,2955.8,2955.6,0.24433258]
[1644632394758,0.64727808,2955.8,2955.6,0.25260317]
[1644632394954,1.83452748,2955.9,2955.6,0.25260317]
[1644632395154,1.83452748,2955.9,2955.6,0.2564679]
[1644632395756,1.83452748,2955.9,2955.6,0.24819731]
[1644632395957,1.83452748,2955.9,2955.7,0.4403898]
[1644632396156,0.64727808,2955.9,2955.7,0.4403898]
[1644632397211,0.64727808,2956.0,2955.7,0.44866029]
[1644632397512,0.64727808,2956.0,2955.7,0.45252502]
[1644632398110,0.64727808,2956.0,2955.7,0.44425453]
[1644632398310,0.64727808,2956.0,2955.7,0.45252511]
[1644632399309,0.64727808,2956.0,2955.7,0.44425453]
[1644632399712,0.64727808,2956.0,2955.7,0.45252511]
[1644632399912,0.64727808,2956.0,2955.9,0.4403898]
[1644632400961,0.64727808,2956.0,2955.9,1.32044784]
[1644632401161,1.40938337,2956.2,2955.9,1.32044784]
[1644632401363,0.54898898,2956.1,2955.9,0.4403898]
[1644632401562,1.19609944,2956.0,2955.9,0.4403898]
[1644632401965,0.64711046,2956.0,2955.9,1.32067106]
[1644632403367,1.19609944,2956.0,2955.9,1.32067106]
[1644632403569,0.54898898,2956.0,2955.9,1.32067106]
[1644632404608,1.19609944,2956.2,2955.9,1.32067106]
[1644632404806,0.64711046,2956.2,2956.1,0.4403898]
[1644632405106,0.64711046,2956.2,2956.1,1.32067106]
[1644632409860,1.1959165,2956.3,2956.1,1.32067106]
[1644632410060,1.1959165,2956.3,2956.2,1.32067106]
[1644632410464,0.64711046,2956.3,2956.2,1.32067106]
[1644632411265,1.1959165,2956.3,2956.2,1.32067106]
[1644632411911,1.17672124,2956.3,2956.2,1.32067106]
[1644632412910,0.54880604,2956.3,2956.0,0.4403898]
[1644632413112,0.54880604,2956.3,2955.9,0.489]
[1644632413113,0.54880604,2956.3,2956.2,0.4403898]
[1644632413409,0.54880604,2956.3,2956.2,0.10099969]
[1644632417659,1.40920043,2956.3,2956.2,0.10099969]
[1644632417860,0.54880604,2956.3,2956.2,0.10099969]
[1644632420406,0.71790604,2956.3,2956.2,0.10099969]
[1644632420607,1.57999096,2956.3,2956.2,0.10099969]
[1644632421615,1.58399096,2956.3,2956.2,0.10099969]
[1644632422417,0.72190604,2956.3,2956.2,0.10099969]
[1644632424858,1.58382034,2956.3,2956.2,0.10099969]
[1644632425059,0.55280604,2956.3,2956.2,0.10099969]
[1644632425860,3.96567499,2956.3,2956.2,0.10099969]
[1644632426461,0.55280604,2956.3,2956.2,0.10099969]
[1644632426910,4.13508126,2956.3,2955.3,0.00386473]
[1644632427112,4.13508126,2956.3,2955.7,0.00768271]
[1644632427113,0.64645112,2955.8,2955.7,0.00768271]
[1644632427711,0.54880604,2955.8,2955.7,0.00768271]
[1644632428110,0.54880604,2955.8,2955.3,0.00386473]
[1644632428111,1.12550065,2955.8,2955.3,0.00386473]
[1644632428311,1.19505793,2955.7,2955.4,0.84318472]
[1644632428512,1.19505793,2955.7,2955.6,0.00768204]
[1644632429012,0.49880604,2955.7,2955.6,0.00768204]
[1644632429412,0.49880604,2955.7,2955.3,0.00386473]
[1644632429612,0.49880604,2955.7,2955.5,0.00768214]
[1644632430657,0.49880604,2955.7,2955.3,0.00386473]
[1644632430857,0.49880604,2955.7,2955.5,0.00768222]
[1644632431861,0.50280604,2955.7,2955.3,0.00386473]
[1644632432062,0.50280604,2955.7,2955.5,0.00768222]
[1644632433063,0.50280604,2955.7,2955.3,0.00386473]
[1644632433363,0.50280604,2955.7,2955.5,0.00768222]
[1644632433562,0.50280604,2955.7,2955.5,0.00142978]
[1644632434164,0.50280604,2955.7,2955.3,0.00386473]
[1644632435630,0.50280604,2955.7,2955.4,0.00298362]
[1644632435830,0.64625189,2955.6,2955.4,0.00298362]
[1644632436632,0.64625189,2955.6,2955.3,0.00386473]
[1644632436835,0.64625189,2955.6,2955.4,0.00298362]
[1644632437234,0.004,2955.7,2955.4,0.00298362]
[1644632437835,0.004,2955.7,2954.9,0.00386473]
[1644632438059,0.004,2955.7,2955.4,0.00826494]
[1644632439064,0.004,2955.7,2955.2,0.00386473]
[1644632439265,0.004,2955.7,2955.4,0.00826494]
[1644632439462,0.004,2955.7,2955.4,0.01212967]
[1644632440266,0.004,2955.7,2955.4,0.49286473]
[1644632440465,0.004,2955.7,2955.4,0.50112967]
[1644632440667,0.004,2955.7,2955.5,1.00004808]
[1644632440866,0.004,2955.7,2955.6,0.84599]
[1644632444020,0.004,2955.7,2955.5,2.86111808]
[1644632444219,0.004,2955.7,2955.5,3.35011808]
[1644632445219,0.004,2955.7,2955.5,0.6581]
[1644632446466,0.88982869,2955.6,2955.5,0.489]
[1644632446665,0.88982869,2955.6,2955.4,0.01212976]
[1644632447069,0.88982869,2955.6,2955.4,0.00826503]
[1644632447468,0.88982869,2955.6,2955.2,0.00386473]
[1644632447670,0.88982869,2955.6,2955.4,0.00826485]
[1644632448671,0.88982869,2955.6,2955.2,0.00386473]
[1644632448872,0.88982869,2955.6,2955.4,0.00826485]
[1644632449070,0.5964741,2955.5,2955.4,0.00826485]
[1644632449315,0.5964741,2955.5,2955.4,0.83739414]
[1644632449709,0.5964741,2955.5,2955.4,0.82912929]
[1644632449913,0.5964741,2955.5,2955.3,0.82912929]
[1644632450110,0.5964741,2955.5,2955.3,0.83739419]
[1644632450309,0.004,2955.7,2955.4,0.82912929]
[1644632450513,0.59647817,2955.6,2955.4,0.82912929]
[1644632451319,0.59647817,2955.6,2955.4,0.83739414]
[1644632451515,0.59647817,2955.6,2955.5,0.82912929]
[1644632452818,0.59647817,2955.6,2955.4,0.00826494]
[1644632453056,0.59647817,2955.6,2955.5,0.81354051]
[1644632453657,0.59647817,2955.6,2955.5,0.81354845]
[1644632453856,0.59647817,2955.6,2955.4,0.00826494]
[1644632454056,0.59647817,2955.6,2955.5,0.81355686]
[1644632454255,0.59647817,2955.6,2955.4,0.00826494]
[1644632454457,0.59647817,2955.6,2955.5,0.81360243]
[1644632454657,0.69434371,2955.4,2955.3,0.00386473]
[1644632454856,1.29082188,2955.4,2955.3,0.81368748]
[1644632455063,1.29082188,2955.4,2955.2,0.81755221]
[1644632455261,0.69434371,2955.4,2955.3,0.81368748]
[1644632455460,1.30671568,2955.4,2955.3,0.81368748]
[1644632456461,1.3057403,2955.4,2955.3,0.81368748]
[1644632457116,1.3057403,2955.4,2955.1,0.81755221]
[1644632457413,0.61237197,2955.3,2955.2,0.82195248]
[1644632458216,0.61237197,2955.3,2955.2,0.81368748]
[1644632460765,0.61237197,2955.3,2954.9,0.00386473]
[1644632460962,0.61237197,2955.3,2955.1,0.0082651]
[1644632461463,1.0225529,2955.2,2955.1,0.0082651]
[1644632461760,1.63492487,2955.2,2954.6,0.00386473]
[1644632461966,1.18103809,2954.7,2954.6,0.0369305]
[1644632462165,1.79341006,2954.7,2954.6,0.84695068]
[1644632462365,1.79341006,2954.7,2954.6,0.88730875]
[1644632462965,1.79341006,2954.7,2954.6,0.85424298]
[1644632463165,0.61237197,2954.7,2954.6,0.85424298]
[1644632463367,0.61237197,2954.7,2954.6,1.70052298]
[1644632463567,0.61237197,2955.2,2954.6,1.70052298]
[1644632463766,0.61237197,2955.1,2954.7,0.81388491]
[1644632463965,0.61237197,2955.1,2954.7,0.81772983]
[1644632464165,0.61237197,2955.0,2954.7,0.81772983]
[1644632464408,0.004,2955.3,2954.7,0.81772983]
[1644632464409,1.78025065,2954.9,2954.8,0.01211037]
[1644632464609,1.78025065,2954.9,2954.8,0.82215036]
[1644632465413,1.78025065,2954.9,2954.7,0.00384492]
[1644632465611,0.61237197,2954.8,2954.7,0.00384492]
[1644632465810,0.61237197,2954.8,2954.7,0.0082655]
[1644632466211,0.61237197,2954.8,2954.7,0.80497611]
[1644632466611,0.61237197,2954.8,2954.7,0.79671061]
[1644632468756,0.61237197,2954.8,2954.6,0.05246859]
[1644632468955,0.61237197,2954.8,2954.6,0.04420299]
[1644632469557,0.61237197,2954.8,2954.6,0.05246859]
[1644632469958,0.004,2955.0,2954.7,0.79590562]
[1644632470159,0.62919271,2954.9,2954.8,0.84629]
[1644632470358,0.62919271,2954.9,2954.8,1.64219562]
[1644632472514,0.62919271,2955.0,2954.8,1.64219562]
[1644632472813,1.14190529,2955.1,2954.8,0.84629]
[1644632472814,0.62919271,2954.9,2954.8,0.84629]
[1644632473614,0.62919271,2955.0,2954.8,0.84629]
[1644632474615,0.62919271,2955.0,2954.7,0.01211042]
[1644632474815,0.73052129,2954.7,2954.6,0.04035807]
[1644632475016,1.359714,2954.7,2954.6,0.83584853]
[1644632477088,1.32314757,2954.7,2954.6,0.83584853]
[1644632478494,1.32714757,2954.7,2954.6,0.83584853]
[1644632479092,1.32714757,2954.7,2954.6,0.04035807]
[1644632479829,1.32714757,2954.7,2954.6,0.88663807]
[1644632480230,1.32714757,2954.7,2954.6,0.83597709]
[1644632480431,1.32714757,2954.7,2954.6,0.04035807]
[1644632482535,1.32714757,2954.7,2954.5,0.0491922]
[1644632482840,0.69795486,2954.7,2954.6,0.84628]
[1644632483060,1.32531276,2954.7,2954.6,0.84628]
[1644632484962,1.32531276,2954.7,2954.5,1.7417722]
[1644632485162,1.32531276,2954.7,2954.5,0.0491922]
[1644632485163,0.6273579,2954.6,2954.5,0.0491922]
[1644632485764,0.6273579,2954.6,2954.5,0.04092649]
[1644632486819,0.6273579,2954.6,2954.4,2.02075581]
[1644632486820,0.6273579,2954.6,2954.4,2.0116823]
[1644632487022,0.6273579,2954.6,2954.4,2.00341649]
[1644632487224,0.6273579,2954.6,2954.4,2.0116823]
[1644632487421,0.69795486,2954.7,2954.5,0.79791014]
[1644632487622,0.69795486,2954.7,2954.5,3.33676014]
[1644632487822,0.62415509,2954.6,2954.5,2.53885]
[1644632488022,0.69795486,2954.7,2954.5,3.77605252]
[1644632488221,0.69795486,2954.7,2954.5,2.97785]
[1644632488222,0.62439696,2954.6,2954.5,2.97785]
[1644632488422,0.62439696,2954.6,2954.5,2.97980998]
[1644632489321,0.62439696,2954.6,2954.5,2.97980749]
[1644632492767,0.62839696,2954.6,2954.5,2.97980749]
[1644632492968,0.62839696,2954.6,2954.5,2.18156]
[1644632493570,0.62839696,2954.6,2954.5,2.98007494]
[1644632497112,0.62839696,2954.6,2954.5,1.28751494]
[1644632498060,0.62954752,2954.6,2954.5,1.28751494]
[1644632498261,0.62954991,2954.6,2954.5,1.28751494]
[1644632498458,0.62954995,2954.6,2954.5,1.28751494]
[1644632498660,0.004,2954.6,2954.5,1.28751494]
[1644632498861,0.62951286,2954.6,2954.5,1.28751494]
[1644632499865,0.004,2954.6,2954.5,1.28751494]
[1644632500467,0.6300036,2954.6,2954.5,1.28751494]
[1644632500668,0.63000367,2954.6,2954.5,1.28751494]
[1644632500867,0.004,2954.6,2954.5,1.28751494]
[1644632501069,0.63000729,2954.6,2954.5,1.28751494]
[1644632501270,0.004,2954.6,2954.5,1.28751494]
[1644632502517,0.65505142,2954.6,2954.5,1.28751494]
[1644632502718,0.004,2954.6,2954.5,1.28751494]
[1644632503517,0.65510584,2954.6,2954.5,1.28751494]
[1644632503717,0.004,2954.6,2954.5,1.28751494]
[1644632503919,0.64715922,2954.6,2954.5,1.28751494]
[1644632504520,0.64782356,2954.6,2954.5,1.28751494]
[1644632504719,0.004,2954.6,2954.5,1.28751494]
[1644632504919,0.64782199,2954.6,2954.5,1.28751494]
[1644632505120,0.004,2954.6,2954.5,1.28751494]
[1644632505320,0.64781619,2954.6,2954.5,1.28751494]
[1644632505561,0.004,2954.6,2954.5,1.28751494]
[1644632505961,0.64784769,2954.6,2954.5,1.28751494]
[1644632506561,0.64784769,2954.6,2954.5,1.23751494]
[1644632509310,0.004,2954.6,2954.5,1.23751494]
[1644632509512,0.64716434,2954.6,2954.5,1.23751494]
[1644632509711,0.004,2954.6,2954.5,1.23751494]
[1644632509909,0.64716785,2954.6,2954.5,1.23751494]
[1644632513063,0.6472468,2954.6,2954.5,1.23751494]
[1644632513267,0.64724515,2954.6,2954.5,1.23751494]
[1644632513463,0.004,2954.6,2954.5,1.23751494]
[1644632513863,0.6472142,2954.6,2954.5,1.23751494]
[1644632514063,0.004,2954.6,2954.5,1.23751494]
[1644632514265,0.64721,2954.6,2954.5,1.23751494]
[1644632514465,0.64720993,2954.6,2954.5,1.23751494]
[1644632514668,0.004,2954.6,2954.5,1.23751494]
[1644632514870,0.64720548,2954.6,2954.5,1.23751494]
[1644632515166,0.004,2954.6,2954.5,1.23751494]
[1644632515967,0.64733544,2954.6,2954.5,1.23751494]
[1644632516167,0.64733633,2954.6,2954.5,1.23751494]
[1644632516368,0.004,2954.6,2954.5,1.23751494]
[1644632516567,0.64733639,2954.6,2954.5,1.23751494]
[1644632516808,0.004,2954.6,2954.5,1.23751494]
[1644632517015,0.64735306,2954.6,2954.5,1.23751494]
[1644632517214,0.004,2954.6,2954.5,1.23751494]
[1644632517418,0.64735536,2954.6,2954.5,1.23751494]
[1644632517713,0.004,2954.6,2954.5,1.23751494]
[1644632517914,0.64735572,2954.6,2954.5,1.23751494]
[1644632518112,0.004,2954.6,2954.5,1.23751494]
[1644632518313,0.64737302,2954.6,2954.5,1.23751494]
[1644632518512,0.004,2954.6,2954.5,1.23751494]
[1644632518713,0.64745969,2954.6,2954.5,1.23751494]
[1644632519013,0.64745969,2954.6,2954.5,1.22527767]
[1644632519214,0.64745969,2954.6,2954.5,0.439]
[1644632519713,0.64745969,2954.6,2954.5,1.22616314]
[1644632519919,0.64745969,2954.6,2954.5,1.2259933]
[1644632520117,0.64745969,2954.6,2954.5,0.439]
[1644632520314,0.64745969,2954.6,2954.5,1.2259487]
[1644632520562,0.64745969,2954.6,2954.5,1.22595955]
[1644632520762,0.64745969,2954.6,2954.5,1.2259141]
[1644632520963,0.64745969,2954.6,2954.5,0.439]
[1644632521165,0.64745969,2954.6,2954.5,1.22594722]
[1644632521365,0.64745969,2954.6,2954.5,0.439]
[1644632521567,0.64745969,2954.6,2954.5,1.22594769]
[1644632521765,0.64745969,2954.6,2954.5,0.439]
[1644632522170,0.64745969,2954.6,2954.5,1.22583301]
[1644632528662,1.98395991,2955.4,2954.7,3.45]
[1644632528663,0.69336833,2955.4,2954.7,3.45]
[1644632528867,0.69336833,2955.4,2954.8,3.5]
[1644632529063,0.69336833,2955.4,2954.8,0.489]
[1644632529262,0.69336833,2955.4,2954.8,1.089]
[1644632529263,0.00826414,2955.3,2954.8,1.089]
[1644632529461,0.00826414,2955.3,2954.8,0.789]
[1644632529663,0.99584806,2954.9,2954.8,0.489]
[1644632533419,0.99584806,2954.9,2954.6,0.01210686]
[1644632533615,0.99584806,2954.9,2954.6,0.00826592]
[1644632533815,0.99584806,2954.9,2954.3,0.00384094]
[1644632534218,0.99584806,2954.9,2954.6,0.00826574]
[1644632535019,0.99584806,2954.9,2954.3,0.00384094]
[1644632535220,0.99584806,2954.9,2954.6,0.00826574]
[1644632536269,0.99584806,2954.9,2954.3,0.00384094]
[1644632536469,0.99584806,2954.9,2954.6,0.00826574]
[1644632537476,0.99584806,2954.9,2954.3,0.00384094]
[1644632537676,0.99584806,2954.9,2954.6,0.00826574]
[1644632538680,0.6466992,2954.8,2954.3,0.00384094]
[1644632538879,0.99584806,2954.9,2954.6,0.00826574]
[1644632538880,0.6466992,2954.7,2954.6,0.00826574]
[1644632539079,0.6466992,2954.8,2954.6,0.00826574]
[1644632539512,0.6466992,2954.7,2954.6,0.00826574]
[1644632539912,0.6466992,2954.7,2954.3,0.00384094]
[1644632540113,0.6466992,2954.7,2954.5,0.00826571]
[1644632541014,0.6466992,2954.7,2954.3,0.49284094]
[1644632541414,0.6466992,2954.7,2954.5,0.00826576]
[1644632542219,0.6466992,2954.7,2954.3,0.49284094]
[1644632542418,0.6466992,2954.8,2954.5,0.00826576]
[1644632542618,0.6466992,2954.7,2954.5,0.00826576]
[1644632543094,0.61062905,2954.7,2954.5,0.00826576]
[1644632543490,0.61062905,2954.7,2954.3,0.49284094]
[1644632543691,0.61062905,2954.7,2954.5,0.00826576]
[1644632544692,0.61062905,2954.7,2954.3,0.49284094]
[1644632544892,0.61062905,2954.7,2954.5,0.00764379]
[1644632545896,0.61062905,2954.7,2954.3,0.49284094]
[1644632546096,0.61062905,2954.7,2954.5,0.00764379]
[1644632546498,0.99584806,2954.9,2954.5,0.00764379]
[1644632547119,0.99584806,2954.9,2954.3,0.49284094]
[1644632547319,0.99584806,2954.9,2954.6,0.00764368]
[1644632548219,0.99584806,2954.9,2954.3,0.49284094]
[1644632548220,1.16494806,2954.9,2954.3,0.49284094]
[1644632548422,1.16494806,2954.9,2954.6,0.00764376]
[1644632548622,0.57229356,2954.8,2954.6,0.00764376]
[1644632548822,0.57229356,2954.8,2954.6,0.00155359]
[1644632549422,0.57229356,2954.8,2954.5,0.00384094]
[1644632553378,0.64638842,2954.6,2954.5,0.01210679]
[1644632553578,1.21868198,2954.6,2954.5,0.00826585]
[1644632554179,1.21868198,2954.6,2954.2,0.00384094]
[1644632554416,1.21868198,2954.6,2954.4,0.00771963]
[1644632554613,1.21868198,2954.6,2954.4,0.01156057]
[1644632554813,1.21868198,2954.6,2954.4,0.00771963]
[1644632555015,0.57229356,2954.5,2954.4,0.00771963]
[1644632555213,1.21868198,2954.6,2954.4,0.00771963]
[1644632555513,1.21868198,2954.6,2954.3,0.00384094]
[1644632555713,1.21868198,2954.6,2954.3,0.01156065]
[1644632555915,0.57229356,2954.5,2954.3,0.01156065]
[1644632556114,0.57229356,2954.4,2954.3,0.01156065]
[1644632556413,0.64638842,2954.6,2954.3,0.01156065]
[1644632556613,0.64638842,2954.6,2954.3,0.00384094]
[1644632556816,0.57229356,2954.6,2954.3,0.00384094]
[1644632557022,0.64638842,2954.7,2954.3,0.00384094]
[1644632557023,0.57229356,2954.5,2954.3,0.00384094]
[1644632557217,0.64638842,2954.7,2954.3,0.00384094]
[1644632557218,0.57229356,2954.4,2954.3,0.00384094]
[1644632557416,0.64638842,2954.7,2954.3,0.85775023]
[1644632557617,0.64638842,2954.7,2954.3,0.00384094]
[1644632558367,0.64638842,2954.7,2954.4,0.8615471]
[1644632558570,0.57229356,2954.6,2954.4,0.00771967]
[1644632558768,0.64638842,2954.8,2954.4,0.00771967]
[1644632558769,0.57229356,2954.5,2954.4,0.00771967]
[1644632558967,0.64638842,2954.8,2954.4,0.85380318]
[1644632558968,1.21868198,2954.8,2954.4,0.85380318]
[1644632559370,1.21868198,2954.8,2954.4,0.86155974]
[1644632559574,1.21868198,2954.8,2954.4,0.00775656]
[1644632560170,1.21868198,2954.8,2954.3,0.00384094]
[1644632560371,0.64638842,2954.6,2954.3,0.00384094]
[1644632560571,0.64638842,2954.6,2954.5,0.00775648]
[1644632560974,1.21861716,2954.6,2954.5,0.00775648]
[1644632561171,0.6463236,2954.6,2954.5,0.00775648]
[1644632561376,0.57229356,2954.6,2954.3,0.00384094]
[1644632561573,1.21862135,2954.5,2954.3,0.00384094]
[1644632561824,0.64632779,2954.6,2954.4,0.00775652]
[1644632562023,1.21861731,2954.5,2954.4,0.00775652]
[1644632562229,0.64632779,2954.5,2954.4,0.00775652]
[1644632562625,0.64632779,2954.5,2954.2,0.00384094]
[1644632562825,0.64632779,2954.5,2954.3,0.00775409]
[1644632563825,0.64632779,2954.5,2954.1,0.00384094]
[1644632564023,0.64632779,2954.5,2954.3,0.00775413]
[1644632564225,0.57228952,2954.4,2954.3,0.01159507]
[1644632564426,0.57228952,2954.4,2954.3,0.00775413]
[1644632564829,0.64632779,2954.5,2954.3,0.00775413]
[1644632565025,0.64632779,2954.5,2954.0,0.00384094]
[1644632565226,0.64632779,2954.5,2954.2,0.00775418]
[1644632565426,0.64632779,2954.5,2954.2,0.01159512]
[1644632565669,0.64632779,2954.5,2954.2,0.00775418]
[1644632566070,1.21843303,2954.5,2954.2,0.00775418]
[1644632566269,0.57210524,2954.4,2954.0,0.00384094]
[1644632566470,0.64632779,2954.5,2954.2,0.00775436]
[1644632566669,0.64632779,2954.5,2954.2,0.0115953]
[1644632566869,0.64632779,2954.5,2954.2,0.00775436]
[1644632567073,1.21843303,2954.5,2954.2,0.00775436]
[1644632567374,0.57210524,2954.4,2954.0,0.00384094]
[1644632567572,0.57210524,2954.3,2954.1,0.85398046]
[1644632567773,0.64632779,2954.5,2954.2,0.0115953]
[1644632567972,0.64632779,2954.5,2954.2,0.00775436]
[1644632568173,0.64632779,2954.5,2954.2,0.0115953]
[1644632568372,0.64632779,2954.5,2954.2,0.00775436]
[1644632568573,0.64632779,2954.5,2954.0,0.00384094]
[1644632568775,0.64632779,2954.5,2954.1,0.854002]
[1644632568976,0.66878834,2954.0,2953.9,0.6581]
[1644632569174,2.37749704,2954.0,2953.9,1.51231328]
[1644632569612,2.37749704,2954.0,2953.9,2.18952328]
[1644632572120,2.37749704,2954.0,2953.9,1.51231328]
[1644632572321,2.37749704,2954.0,2953.9,1.34321328]
[1644632573569,2.37749704,2954.0,2953.9,1.09321328]
[1644632575771,2.27749704,2954.0,2953.9,1.09321328]
[1644632575972,0.19400852,2954.0,2953.9,2.26840811]
[1644632576171,1.03146478,2954.8,2953.9,2.26840811]
[1644632576172,0.00825831,2954.6,2954.0,0.84632]
[1644632576370,0.00825831,2954.6,2954.1,0.489]
[1644632576570,0.00825831,2954.6,2954.2,0.489]
[1644632576820,0.00825831,2954.6,2954.3,0.489]
[1644632577020,1.11664417,2954.7,2954.3,0.489]
[1644632577219,0.00825912,2954.6,2954.4,0.59244]
[1644632577419,0.00825912,2954.6,2954.5,0.489]
[1644632578219,1.76297196,2954.7,2954.5,0.489]
[1644632578220,1.11664417,2954.7,2954.5,0.489]
[1644632578519,1.12490915,2954.7,2954.5,0.489]
[1644632579321,1.77123694,2954.7,2954.5,0.489]
[1644632579523,1.76297196,2954.7,2954.5,0.489]
[1644632579726,1.77123689,2954.7,2954.5,0.489]
[1644632580326,1.77123689,2954.7,2954.1,2.03954688]
[1644632580566,1.76297196,2954.7,2954.1,2.52028]
[1644632580770,1.76297196,2954.7,2954.1,1.67386]
[1644632580969,0.00826505,2954.6,2954.1,1.63212652]
[1644632581768,0.64632779,2954.6,2954.1,1.62386]
[1644632581971,1.76297196,2954.7,2954.1,1.62386]
[1644632582172,1.76297196,2954.7,2954.1,1.63212643]
[1644632582173,0.00826496,2954.6,2954.1,1.63212643]
[1644632582373,0.65459275,2954.6,2954.1,1.63212643]
[1644632582976,0.64632779,2954.6,2954.1,2.47029]
[1644632583374,0.65459275,2954.6,2954.1,2.47855643]
[1644632583772,0.65459275,2954.6,2954.1,1.63212643]
[1644632584173,0.64632779,2954.6,2954.1,1.62386]
[1644632584422,0.65459275,2954.6,2954.1,1.63212643]
[1644632584624,0.65459275,2954.6,2954.2,0.00382828]
[1644632584824,0.64632779,2954.5,2954.2,0.00382828]
[1644632585826,0.65459275,2954.6,2954.2,0.00382828]
[1644632586625,0.64632779,2954.6,2954.2,0.00382828]
[1644632586826,0.65459284,2954.6,2954.2,0.00382828]
[1644632587826,0.64632779,2954.6,2954.2,0.00382828]
[1644632588066,0.65459284,2954.6,2954.2,0.00382828]
[1644632588965,0.64632779,2954.6,2954.2,0.00382828]
[1644632589166,0.64632779,2954.5,2954.2,0.0008706]
[1644632589466,1.11664417,2954.7,2954.2,0.0008706]
[1644632589467,0.00826505,2954.6,2954.2,0.0008706]
[1644632590267,1.76297196,2954.7,2954.2,0.0008706]
[1644632590466,0.00826505,2954.6,2954.2,0.0008706]
[1644632591566,1.76297196,2954.7,2954.2,0.0008706]
[1644632591820,0.00826505,2954.6,2954.2,0.0008706]
[1644632592622,1.76297196,2954.7,2954.2,0.0008706]
[1644632592822,0.00826505,2954.6,2954.2,0.0008706]
[1644632593823,1.76297196,2954.7,2954.2,0.0008706]
[1644632594023,0.00826505,2954.6,2954.2,0.0008706]
[1644632594424,0.00826505,2954.6,2954.2,0.4898706]
[1644632595025,1.76297196,2954.7,2954.2,0.4898706]
[1644632595224,0.64632779,2954.6,2954.2,0.4898706]
[1644632595423,0.65459284,2954.6,2954.2,0.4898706]
[1644632596073,0.55527288,2954.5,2954.3,1.46526141]
[1644632596270,0.55527288,2954.5,2954.4,0.87277141]
[1644632596769,1.20160067,2954.5,2954.4,0.87277141]
[1644632597174,1.20160067,2954.5,2954.3,1.4389]
[1644632597573,0.55527288,2954.4,2954.3,1.4389]
[1644632597774,0.64632779,2954.5,2954.3,2.31172214]
[1644632597975,0.55527288,2954.5,2954.4,0.87270686]
[1644632599313,0.55527288,2954.5,2954.4,0.67270686]
[1644632599715,1.20160067,2954.5,2954.3,1.4389]
[1644632600114,0.65459287,2954.6,2954.3,1.4389]
[1644632601113,1.76297196,2954.7,2954.3,1.4389]
[1644632601322,0.00826508,2954.6,2954.3,1.4389]
[1644632601814,0.65459287,2954.6,2954.3,1.4389]
[1644632602219,0.64632779,2954.6,2954.3,1.4389]
[1644632602617,0.65459287,2954.6,2954.3,1.4389]
[1644632603463,0.64632779,2954.6,2954.3,1.4389]
[1644632603665,0.65459287,2954.6,2954.3,1.4389]
[1644632604667,0.64632779,2954.6,2954.3,1.4389]
[1644632604869,0.65459287,2954.6,2954.3,1.4389]
[1644632605869,0.64632779,2954.6,2954.3,1.4389]
[1644632606067,0.65459287,2954.6,2954.3,1.4389]
[1644632607020,0.64632779,2954.6,2954.3,1.4389]
[1644632607222,0.65459287,2954.6,2954.3,1.4389]